bitfinex/quotes_BTCUSD_20250624
["timestamp","ask_amount","ask_price","bid_price","bid_amount"]
[1750729916292,0.0312,105460.0,105450.0,0.20857081]
[1750729916511,0.0312,105450.0,105440.0,0.38589541]
[1750729916641,0.04879379,105450.0,105440.0,0.39877812]
[1750729917063,0.07730479,105450.0,105440.0,0.28430967]
[1750729917268,0.07730479,105450.0,105440.0,0.2937931]
[1750729918197,0.07735484,105450.0,105440.0,0.2937931]
[1750729918593,0.08619116,105450.0,105440.0,0.2937931]
[1750729918972,0.08619116,105450.0,105440.0,0.2977931]
[1750729919280,0.08619116,105450.0,105440.0,0.29657121]
[1750729919904,0.08619116,105450.0,105440.0,0.22091036]
[1750729920148,0.08619116,105450.0,105440.0,0.20194332]
[1750729920355,0.08619116,105450.0,105440.0,0.23039406]
[1750729920759,0.0862068,105450.0,105440.0,0.23039406]
[1750729921172,0.0862068,105450.0,105440.0,0.23139406]
[1750729921421,0.0701068,105450.0,105440.0,0.32689592]
[1750729921632,0.0264958,105450.0,105440.0,0.37689592]
[1750729922370,0.0264958,105450.0,105440.0,0.53493592]
[1750729922980,0.02658435,105450.0,105440.0,0.53493592]
[1750729923184,0.04158435,105450.0,105440.0,0.53493592]
[1750729923407,0.015,105450.0,105440.0,0.53493592]
[1750729923613,0.04159845,105450.0,105440.0,0.53493592]
[1750729924035,0.04160061,105450.0,105440.0,0.53493592]
[1750729924440,0.03273446,105450.0,105440.0,0.53493592]
[1750729924650,0.01773446,105450.0,105440.0,0.53485592]
[1750729925060,0.01773446,105450.0,105440.0,0.53481592]
[1750729925473,0.03343446,105450.0,105440.0,0.53481592]
[1750729927688,0.01773446,105450.0,105440.0,0.53481592]
[1750729930607,0.102091,105460.0,105450.0,0.21811174]
[1750729930872,0.12869834,105460.0,105450.0,0.21811174]
[1750729932321,0.11096011,105460.0,105450.0,0.21811174]
[1750729932528,0.11096356,105460.0,105450.0,0.21811174]
[1750729932697,0.11096356,105460.0,105450.0,0.22011174]
[1750729933316,0.05238356,105460.0,105450.0,0.22011174]
[1750729933534,0.09446356,105460.0,105450.0,0.22011174]
[1750729933732,0.085591,105460.0,105450.0,0.22011174]
[1750729934023,0.100891,105460.0,105450.0,0.22011174]
[1750729935288,0.085591,105460.0,105450.0,0.22011174]
[1750729935837,0.101891,105460.0,105450.0,0.22011174]
[1750729939080,0.101891,105460.0,105450.0,0.37775174]
[1750729939862,0.043511,105460.0,105450.0,0.37775174]
[1750729940073,0.015,105460.0,105450.0,0.37775174]
[1750729942372,0.11573085,105470.0,105460.0,0.21809106]
[1750729942760,0.10119,105470.0,105460.0,0.21809106]
[1750729943718,0.05718,105470.0,105460.0,0.21809106]
[1750729946901,0.05718,105470.0,105460.0,0.2275525]
[1750729947389,0.35648118,105470.0,105460.0,0.21809106]
[1750729950216,0.07368,105470.0,105460.0,0.21809106]
[1750729950446,0.0304,105470.0,105460.0,0.21809106]
[1750729950654,0.0151,105470.0,105460.0,0.21809106]
[1750729951705,0.043608,105470.0,105460.0,0.21809106]
[1750729951906,0.0151,105470.0,105460.0,0.21809106]
[1750729952115,0.0307,105470.0,105460.0,0.21809106]
[1750729952534,0.31350118,105470.0,105460.0,0.21809106]
[1750729952954,0.34200918,105470.0,105460.0,0.21809106]
[1750729954644,0.32640918,105470.0,105460.0,0.21809106]
[1750729954824,0.043608,105470.0,105460.0,0.21809106]
[1750729955202,0.059808,105470.0,105460.0,0.21809106]
[1750729956428,0.043608,105470.0,105460.0,0.21809106]
[1750729956626,0.043608,105470.0,105460.0,0.24729106]
[1750729957004,0.028508,105470.0,105460.0,0.24729106]
[1750729957406,0.028508,105470.0,105460.0,0.54639224]
[1750729957642,0.08860085,105480.0,105470.0,0.21807038]
[1750729957851,0.11710785,105480.0,105470.0,0.21807038]
[1750729958044,0.39990903,105480.0,105470.0,0.21807038]
[1750729958391,0.38536818,105480.0,105470.0,0.21807038]
[1750729958606,0.05816,105480.0,105470.0,0.21807038]
[1750729958791,0.25944,105490.0,105480.0,0.21804973]
[1750729959026,0.61244274,105490.0,105480.0,0.21804973]
[1750729959622,0.27218156,105490.0,105480.0,0.21804973]
[1750729959965,0.31126156,105490.0,105480.0,0.21804973]
[1750729960170,0.26705856,105490.0,105480.0,0.23444973]
[1750729960503,0.26705856,105490.0,105480.0,0.24964973]
[1750729960504,0.04169856,105490.0,105480.0,0.24964973]
[1750729960896,0.04169856,105490.0,105480.0,0.23444973]
[1750729961442,0.00013856,105490.0,105480.0,0.32995159]
[1750729963446,0.00013856,105490.0,105480.0,0.33195159]
[1750729969821,0.00013856,105490.0,105480.0,0.22004973]
[1750729970022,0.01513856,105490.0,105480.0,0.22004973]
[1750729970645,0.29793974,105490.0,105480.0,0.22004973]
[1750729971393,0.01513856,105490.0,105480.0,0.22004973]
[1750729971610,0.00013856,105490.0,105480.0,0.22004973]
[1750729972518,0.00013856,105490.0,105480.0,0.23644973]
[1750729978034,0.00013856,105490.0,105480.0,0.61475277]
[1750729978265,0.00013856,105490.0,105480.0,0.63005277]
[1750729979077,0.00013856,105490.0,105480.0,0.66415277]
[1750729979253,0.00013856,105490.0,105480.0,0.38135159]
[1750729980582,0.00013856,105490.0,105480.0,0.67344297]
[1750729982752,0.00013856,105490.0,105480.0,1.01344297]
[1750729982963,0.00013856,105490.0,105480.0,1.29624415]
[1750729983820,0.00013856,105490.0,105480.0,1.29424415]
[1750729984054,0.00013856,105490.0,105480.0,1.34824415]
[1750729984259,0.00013856,105490.0,105480.0,1.34924415]
[1750729984664,0.00013856,105490.0,105480.0,1.29934577]
[1750729984835,0.00013856,105490.0,105480.0,1.34934577]
[1750729985065,0.00013856,105490.0,105480.0,0.78574341]
[1750729985190,0.00013856,105490.0,105480.0,1.09698492]
[1750729985391,0.00013856,105490.0,105480.0,1.09298492]
[1750729985811,0.00013856,105490.0,105480.0,1.3757861]
[1750729985989,0.00013856,105490.0,105480.0,1.3817861]
[1750729986196,0.00013856,105490.0,105480.0,1.4317861]
[1750729986444,0.00013856,105490.0,105480.0,1.4733061]
[1750729987447,0.00013856,105490.0,105480.0,1.4317861]
[1750729987616,0.00013856,105490.0,105480.0,1.6305461]
[1750729987838,0.00013856,105490.0,105480.0,0.81618374]
[1750729988050,0.00013856,105490.0,105480.0,1.4317861]
[1750729988369,0.00013856,105490.0,105480.0,1.5890261]
[1750729988776,0.00013856,105490.0,105480.0,1.5390261]
[1750729989039,0.00013856,105490.0,105480.0,1.3817861]
[1750729989223,0.00013856,105490.0,105480.0,1.34774492]
[1750729989428,0.00013856,105490.0,105480.0,1.29774492]
[1750729989628,0.00013856,105490.0,105480.0,1.34774492]
[1750729989811,0.00013856,105490.0,105480.0,1.30622492]
[1750729990224,0.00013856,105490.0,105480.0,1.20622492]
[1750729990453,0.00013856,105490.0,105480.0,0.97342374]
[1750729990769,0.00013856,105490.0,105480.0,1.20622492]
[1750729990955,0.00013856,105490.0,105480.0,1.25622492]
[1750729991301,0.00013856,105490.0,105480.0,1.5390261]
[1750729992912,0.00013856,105490.0,105480.0,1.7390261]
[1750729993326,0.00013856,105490.0,105480.0,1.7580681]
[1750729994427,0.0001,105520.0,105510.0,0.1319]
[1750729994627,0.0001,105520.0,105510.0,0.82691076]
[1750729994759,0.00056175,105520.0,105510.0,0.78539076]
[1750729994969,0.00056175,105520.0,105510.0,0.47068958]
[1750729995181,0.01606175,105520.0,105510.0,0.47068958]
[1750729995640,0.01606175,105520.0,105510.0,0.47868958]
[1750729996010,0.01606175,105520.0,105510.0,0.5071732]
[1750729996416,0.01606175,105520.0,105510.0,0.4991732]
[1750729996819,0.00056175,105520.0,105510.0,0.5011732]
[1750729997653,0.01706175,105520.0,105510.0,0.5071732]
[1750729998252,0.01706175,105520.0,105510.0,0.78997438]
[1750729998452,0.00056175,105520.0,105510.0,0.78997438]
[1750729998925,0.00056175,105520.0,105510.0,0.80657438]
[1750729999496,0.00056175,105520.0,105510.0,0.82237438]
[1750730000063,0.00056175,105520.0,105510.0,0.66517438]
[1750730000263,0.00056175,105520.0,105510.0,0.82237438]
[1750730001693,0.00056175,105520.0,105510.0,0.80657438]
[1750730003803,0.00056175,105520.0,105510.0,0.82277438]
[1750730004502,0.00056175,105520.0,105510.0,1.57123641]
[1750730004945,0.00056175,105520.0,105510.0,1.91743641]
[1750730005370,0.00056175,105520.0,105510.0,1.93197726]
[1750730005586,0.00056175,105520.0,105510.0,1.93577426]
[1750730006007,0.00056175,105520.0,105510.0,1.93377426]
[1750730006454,0.00056175,105520.0,105510.0,1.93577426]
[1750730007105,0.00056175,105520.0,105510.0,1.92977426]
[1750730007478,0.00056175,105520.0,105510.0,1.93977426]
[1750730007679,0.00056175,105520.0,105510.0,1.93777426]
[1750730008108,0.00056175,105520.0,105510.0,1.94277426]
[1750730008836,0.0001,105530.0,105520.0,0.64590908]
[1750730009057,0.00018749,105530.0,105520.0,0.74141094]
[1750730009746,0.00018749,105530.0,105520.0,0.76988994]
[1750730009967,0.00018749,105530.0,105520.0,0.71988994]
[1750730010185,0.00018749,105530.0,105520.0,0.76988994]
[1750730010732,0.00018749,105530.0,105520.0,1.07408994]
[1750730011124,0.00018749,105530.0,105520.0,1.07808994]
[1750730011848,0.00018749,105530.0,105520.0,1.02808994]
[1750730012249,0.00018749,105530.0,105520.0,1.07808994]
[1750730013137,0.00018749,105530.0,105520.0,1.02808994]
[1750730013294,0.00018749,105530.0,105520.0,1.07808994]
[1750730013904,0.00018749,105530.0,105520.0,1.02808994]
[1750730014353,0.00018749,105530.0,105520.0,1.07808994]
[1750730015833,0.00018749,105530.0,105520.0,1.06354909]
[1750730016038,0.00018749,105530.0,105520.0,1.16867009]
[1750730016237,0.00018749,105530.0,105520.0,0.88586891]
[1750730016429,0.00018749,105530.0,105520.0,0.82247009]
[1750730016626,0.00018749,105530.0,105520.0,0.87247009]
[1750730017326,0.00018749,105530.0,105520.0,0.83099009]
[1750730017530,0.00018749,105530.0,105520.0,0.32546891]
[1750730017704,0.01668749,105530.0,105520.0,1.10539009]
[1750730018908,0.01668749,105530.0,105520.0,0.82258891]
[1750730019326,0.01668749,105530.0,105520.0,1.10539009]
[1750730020222,0.01668749,105530.0,105520.0,0.94827009]
[1750730020441,0.01668749,105530.0,105520.0,1.10539009]
[1750730021636,0.03258749,105530.0,105520.0,1.10539009]
[1750730021837,0.03258749,105530.0,105520.0,0.82258891]
[1750730022107,0.03258749,105530.0,105520.0,1.10539009]
[1750730023857,0.03258749,105530.0,105520.0,0.94827009]
[1750730024063,0.03258749,105530.0,105520.0,1.10539009]
[1750730027305,0.03258749,105530.0,105520.0,1.14929009]
[1750730027707,0.03258749,105530.0,105520.0,1.14681009]
[1750730029118,0.03258749,105530.0,105520.0,0.86400891]
[1750730029802,0.03258749,105530.0,105520.0,0.88299891]
[1750730030042,0.03258749,105530.0,105520.0,0.52396891]
[1750730030278,0.31538867,105530.0,105520.0,0.52396891]
[1750730030500,0.03258749,105530.0,105520.0,0.52396891]
[1750730030939,0.03258749,105530.0,105520.0,0.51196891]
[1750730031151,0.03258749,105530.0,105520.0,0.51296891]
[1750730031367,0.03258749,105530.0,105520.0,0.51696891]
[1750730031792,0.03258749,105530.0,105520.0,0.51596891]
[1750730031999,0.03258749,105530.0,105520.0,0.51696891]
[1750730034986,0.03258749,105530.0,105520.0,0.35988891]
[1750730035210,0.03258749,105530.0,105520.0,0.51696891]
[1750730036751,0.03258749,105530.0,105520.0,0.35988891]
[1750730036952,0.03258749,105530.0,105520.0,0.51696891]
[1750730038543,0.03258749,105530.0,105520.0,0.35988891]
[1750730038748,0.03258749,105530.0,105520.0,0.51696891]
[1750730039414,0.03258749,105530.0,105520.0,0.26438705]
[1750730039624,0.31538867,105530.0,105520.0,0.42146705]
[1750730040259,0.03258749,105530.0,105520.0,0.42146705]
[1750730041234,0.31538867,105530.0,105520.0,0.2479143]
[1750730041490,0.31538867,105530.0,105520.0,0.27634365]
[1750730041951,0.32992952,105530.0,105520.0,0.2479143]
[1750730042178,0.42543138,105530.0,105520.0,0.0449]
[1750730042380,0.76543138,105530.0,105520.0,0.0439]
[1750730043660,0.79392938,105530.0,105520.0,0.0439]
[1750730051368,0.88939933,105530.0,105520.0,0.0439]
[1750730052105,1.17220051,105530.0,105520.0,0.0439]
[1750730052323,1.17220051,105530.0,105490.0,0.20854994]
[1750730052324,0.0325,105510.0,105480.0,0.1948122]
[1750730052533,0.32984203,105490.0,105480.0,0.07566085]
[1750730053155,0.14254271,105490.0,105480.0,0.07566085]
[1750730053376,0.04704085,105490.0,105480.0,0.28423083]
[1750730053555,0.32984203,105490.0,105480.0,0.28423092]
[1750730053795,0.32854203,105490.0,105480.0,0.00948047]
[1750730054000,0.29734203,105490.0,105480.0,0.00046175]
[1750730054211,0.29734203,105490.0,105480.0,0.00994222]
[1750730054550,0.32854203,105490.0,105480.0,0.0194226]
[1750730054906,0.32854203,105490.0,105480.0,0.00994222]
[1750730055055,0.33054203,105490.0,105480.0,0.01942251]
[1750730055551,0.33054203,105490.0,105480.0,0.00994222]
[1750730055755,0.33054203,105490.0,105480.0,0.00046175]
[1750730055972,0.33054203,105490.0,105480.0,0.00546175]
[1750730056158,0.33054203,105490.0,105480.0,0.00046175]
[1750730056615,0.33054203,105490.0,105480.0,0.00346175]
[1750730056616,0.92348389,105490.0,105480.0,0.00346175]
[1750730059330,0.92348389,105490.0,105480.0,0.01294222]
[1750730059563,0.76604389,105490.0,105480.0,0.2215122]
[1750730059764,0.86934203,105490.0,105480.0,0.24047215]
[1750730060003,0.33054203,105490.0,105480.0,0.24047215]
[1750730060238,0.04344,105490.0,105480.0,0.331633]
[1750730060470,0.04344,105490.0,105480.0,0.27107215]
[1750730061360,0.04144,105490.0,105480.0,0.26807215]
[1750730061573,0.04144,105490.0,105480.0,0.26907215]
[1750730061791,0.04144,105490.0,105480.0,0.27307215]
[1750730062875,0.93414636,105510.0,105500.0,0.01895689]
[1750730063098,1.13306636,105510.0,105500.0,0.21800847]
[1750730063309,1.13306636,105510.0,105500.0,0.22748651]
[1750730063566,1.13306636,105510.0,105500.0,0.20853034]
[1750730063981,1.13306636,105510.0,105500.0,0.20853043]
[1750730064219,1.13306636,105510.0,105490.0,0.21802888]
[1750730064422,0.28280118,105500.0,105490.0,0.21802888]
[1750730065183,0.29900118,105500.0,105490.0,0.19907082]
[1750730065394,0.31490118,105500.0,105490.0,0.21802933]
[1750730065595,0.31490118,105500.0,105480.0,0.38297155]
[1750730065802,0.31490118,105500.0,105490.0,0.2085503]
[1750730065981,0.31490118,105500.0,105490.0,0.21802942]
[1750730066376,0.31490118,105500.0,105490.0,0.2180296]
[1750730066911,0.31490118,105500.0,105490.0,0.22750881]
[1750730067088,0.31490118,105500.0,105490.0,0.2180296]
[1750730067506,0.33044203,105500.0,105490.0,0.00947948]
[1750730067729,0.33044203,105500.0,105490.0,0.00947957]
[1750730067930,0.0321,105490.0,105480.0,0.00046175]
[1750730068135,0.31490118,105490.0,105480.0,0.00046175]
[1750730068299,0.32944203,105490.0,105480.0,0.00046175]
[1750730068490,0.32944203,105490.0,105480.0,0.00994222]
[1750730068688,0.32944203,105490.0,105480.0,0.01942251]
[1750730068885,0.32944203,105490.0,105480.0,0.00046175]
[1750730069234,0.32944203,105490.0,105480.0,0.00246175]
[1750730069747,0.32944203,105490.0,105480.0,0.01194222]
[1750730069894,0.32944203,105490.0,105480.0,0.01294222]
[1750730070098,0.32944203,105490.0,105480.0,0.00346175]
[1750730075015,0.32944203,105490.0,105480.0,0.00146175]
[1750730075410,0.48660203,105490.0,105480.0,0.01094222]
[1750730075610,0.48660203,105490.0,105480.0,0.0204226]
[1750730075805,0.48660203,105490.0,105480.0,0.21951229]
[1750730076210,0.48660203,105490.0,105480.0,0.209032]
[1750730076417,0.33044203,105490.0,105480.0,0.209032]
[1750730077038,0.33044203,105490.0,105480.0,0.00994222]
[1750730077218,0.33044203,105490.0,105480.0,0.0194226]
[1750730078148,0.33044203,105490.0,105480.0,0.02890289]
[1750730079390,0.33044203,105490.0,105480.0,0.00994222]
[1750730079588,0.33044203,105490.0,105480.0,0.00046175]
[1750730080402,0.33044203,105490.0,105480.0,0.00994222]
[1750730080603,0.33044203,105490.0,105480.0,0.0194226]
[1750730081499,0.33044203,105490.0,105480.0,0.2185122]
[1750730081693,0.31454203,105490.0,105480.0,0.22799231]
[1750730081894,0.001,105490.0,105480.0,0.34523246]
[1750730083022,0.66332118,105500.0,105480.0,0.34523246]
[1750730083223,0.67786203,105500.0,105490.0,0.23302906]
[1750730083628,0.67786203,105500.0,105490.0,0.21802906]
[1750730083839,0.67786203,105500.0,105490.0,0.20855012]
[1750730084039,0.38052,105500.0,105490.0,0.23302906]
[1750730084819,0.38152,105500.0,105490.0,0.23302906]
[1750730087076,0.66432118,105500.0,105490.0,0.23302906]
[1750730091362,0.38152,105500.0,105490.0,0.21802906]
[1750730091571,0.66432118,105500.0,105490.0,0.23312906]
[1750730092645,0.66432118,105500.0,105490.0,0.21802906]
[1750730094110,0.66432118,105500.0,105490.0,0.20855012]
[1750730094335,0.66432118,105500.0,105490.0,0.21802915]
[1750730094531,0.66432118,105500.0,105490.0,0.20855012]
[1750730094693,0.67992118,105500.0,105490.0,0.20855012]
[1750730095268,0.67992118,105500.0,105490.0,0.20707012]
[1750730095425,0.69512118,105500.0,105490.0,0.21654924]
[1750730095587,0.67992118,105500.0,105490.0,0.21654924]
[1750730095783,0.67992118,105500.0,105490.0,0.20707012]
[1750730096030,0.67992118,105500.0,105490.0,0.20707021]
[1750730096433,0.67992118,105500.0,105490.0,0.2070703]
[1750730096649,0.67992118,105500.0,105490.0,0.19759091]
[1750730096887,0.67992118,105500.0,105490.0,0.2070703]
[1750730097351,0.71076203,105500.0,105480.0,0.19007115]
[1750730097558,0.29830118,105490.0,105480.0,0.22799177]
[1750730097775,0.28280118,105490.0,105480.0,0.23747161]
[1750730098984,0.69336203,105500.0,105490.0,0.21802933]
[1750730099128,0.69336203,105500.0,105490.0,0.22750827]
[1750730099817,0.69336203,105500.0,105490.0,0.21802942]
[1750730100227,0.39506085,105500.0,105490.0,0.24410836]
[1750730100427,0.38052,105500.0,105490.0,0.26040836]
[1750730100629,0.04152,105500.0,105490.0,0.26040836]
[1750730101306,0.04252,105500.0,105490.0,0.26040836]
[1750730102076,0.001,105500.0,105490.0,0.6387114]
[1750730102373,0.001,105500.0,105490.0,0.35591022]
[1750730102984,0.001,105500.0,105490.0,0.7958314]
[1750730103867,0.001,105500.0,105490.0,0.51303022]
[1750730104409,0.32424118,105520.0,105510.0,0.21798772]
[1750730104904,0.32424118,105520.0,105510.0,0.20851058]
[1750730105132,0.32424118,105520.0,105510.0,0.22746495]
[1750730106391,0.04144,105520.0,105510.0,0.25816495]
[1750730107272,0.04144,105520.0,105510.0,0.24246495]
[1750730107513,0.55551685,105530.0,105520.0,0.21796687]
[1750730107723,0.87975803,105530.0,105520.0,0.21796687]
[1750730108339,0.89615803,105530.0,105520.0,0.20849063]
[1750730108550,0.89615803,105530.0,105520.0,0.21796687]
[1750730108756,0.89729647,105530.0,105520.0,0.21796696]
[1750730109041,0.89729647,105530.0,105520.0,0.19901421]
[1750730109238,0.89729647,105530.0,105520.0,0.20849081]
[1750730109464,0.89729647,105530.0,105520.0,0.21796732]
[1750730109673,0.88089647,105530.0,105520.0,0.22744365]
[1750730110056,0.88089647,105530.0,105520.0,0.23691998]
[1750730110187,0.88089647,105530.0,105520.0,0.23692007]
[1750730110409,0.88089647,105530.0,105520.0,0.22744374]
[1750730110661,0.88089647,105530.0,105520.0,0.21796732]
[1750730110824,0.88089647,105530.0,105520.0,0.22744374]
[1750730111025,0.88089647,105530.0,105520.0,0.23691998]
[1750730111452,0.88089647,105530.0,105520.0,0.22744374]
[1750730111655,0.88089647,105530.0,105520.0,0.23692007]
[1750730112606,0.88089647,105530.0,105520.0,0.22744338]
[1750730112798,0.88089647,105530.0,105520.0,0.23691962]
[1750730113564,0.86559647,105530.0,105520.0,0.22744338]
[1750730113770,0.86559647,105530.0,105520.0,0.23691962]
[1750730115238,0.86559647,105530.0,105520.0,0.22744338]
[1750730115444,0.88149647,105530.0,105520.0,0.20849063]
[1750730115652,0.88149647,105530.0,105520.0,0.21796705]
[1750730116982,0.88141647,105530.0,105520.0,0.22744329]
[1750730117237,0.86551647,105530.0,105520.0,0.22744329]
[1750730117857,0.07113444,105530.0,105520.0,0.22744329]
[1750730118049,0.22817444,105530.0,105520.0,0.24264329]
[1750730118430,0.19967844,105530.0,105520.0,0.24264329]
[1750730118669,0.00123844,105530.0,105520.0,0.33380414]
[1750730118787,0.04263844,105530.0,105520.0,0.33380414]
[1750730120411,0.00123844,105530.0,105520.0,0.33380414]
[1750730122594,0.00123844,105530.0,105520.0,0.429306]
[1750730122803,0.00123844,105530.0,105520.0,0.71210718]
[1750730123551,0.00023844,105530.0,105520.0,0.71210718]
[1750730123997,0.00023844,105530.0,105520.0,0.71810718]
[1750730124151,0.00023844,105530.0,105520.0,1.05810718]
[1750730125014,0.00023844,105530.0,105520.0,1.06710718]
[1750730125207,0.00023844,105530.0,105520.0,1.11710718]
[1750730125987,0.00023844,105530.0,105520.0,1.04144633]
[1750730127063,0.00023844,105530.0,105520.0,0.75864515]
[1750730127260,0.00023844,105530.0,105520.0,1.04144633]
[1750730127460,0.00023844,105530.0,105520.0,0.75864515]
[1750730127700,0.00023844,105530.0,105520.0,0.91560515]
[1750730127935,0.00023844,105530.0,105520.0,0.56010515]
[1750730128126,0.00023844,105530.0,105520.0,0.51010515]
[1750730128741,0.00023844,105530.0,105520.0,0.49490515]
[1750730129198,0.28303962,105530.0,105520.0,0.39940329]
[1750730129535,0.32443962,105530.0,105520.0,0.23644329]
[1750730129745,0.35673962,105530.0,105520.0,0.39340329]
[1750730130366,0.35673962,105530.0,105520.0,0.38440329]
[1750730130883,0.35673962,105530.0,105520.0,0.22744329]
[1750730131315,0.35673962,105530.0,105520.0,0.38936329]
[1750730131611,0.37128047,105530.0,105520.0,0.23244329]
[1750730131815,0.37128047,105530.0,105520.0,0.39136329]
[1750730132043,0.00023844,105530.0,105520.0,1.05900718]
[1750730132471,0.00023844,105530.0,105520.0,1.05700718]
[1750730132671,0.00023844,105530.0,105520.0,1.05800718]
[1750730133785,0.00023844,105530.0,105520.0,1.05300718]
[1750730134204,0.00023844,105530.0,105520.0,1.06400718]
[1750730135806,0.00023844,105530.0,105520.0,0.98834633]
[1750730135968,0.00023844,105530.0,105520.0,1.03734633]
[1750730137136,0.00023844,105530.0,105520.0,1.08734633]
[1750730137337,0.00023844,105530.0,105520.0,1.09234633]
[1750730137543,0.00023844,105530.0,105520.0,1.38854633]
[1750730138054,0.00023844,105530.0,105520.0,1.09234633]
[1750730138867,0.00023844,105530.0,105520.0,1.14234633]
[1750730140794,0.00023844,105530.0,105520.0,1.34234633]
[1750730143188,0.00023844,105530.0,105520.0,1.34614333]
[1750730145528,0.00023844,105530.0,105520.0,1.65688418]
[1750730145885,0.00023844,105530.0,105520.0,1.93968536]
[1750730147992,0.00023844,105530.0,105520.0,1.88968536]
[1750730148194,0.00023844,105530.0,105520.0,1.93968536]
[1750730149024,0.00023844,105530.0,105520.0,1.65688418]
[1750730149788,0.00023844,105530.0,105520.0,1.93968536]
[1750730151210,0.0001,105540.0,105530.0,0.65794639]
[1750730151406,0.0001,105540.0,105530.0,1.50865061]
[1750730151762,0.0001,105550.0,105540.0,0.90386662]
[1750730152110,0.0001,105550.0,105540.0,1.90249084]
[1750730152520,0.0001,105550.0,105540.0,1.90628684]
[1750730152644,0.0001,105550.0,105540.0,2.06308684]
[1750730152848,0.0001,105550.0,105540.0,2.34588802]
[1750730153086,0.0001,105550.0,105540.0,2.06308684]
[1750730153942,0.07182,105600.0,105590.0,0.21782256]
[1750730154175,0.09851469,105600.0,105590.0,0.47012442]
[1750730155430,0.09851104,105600.0,105590.0,0.47012442]
[1750730155862,0.05719104,105600.0,105590.0,0.47012442]
[1750730156411,0.05719104,105600.0,105590.0,0.47008442]
[1750730158297,0.0571834,105600.0,105590.0,0.47008442]
[1750730158445,0.0571834,105600.0,105590.0,0.31332442]
[1750730158867,0.0571834,105600.0,105590.0,0.47008442]
[1750730159064,0.0571834,105600.0,105590.0,0.31332442]
[1750730159284,0.05718339,105600.0,105590.0,0.47008442]
[1750730160720,0.33998457,105600.0,105590.0,0.21782256]
[1750730160908,0.33998457,105600.0,105590.0,0.37454256]
[1750730161121,0.3399826,105600.0,105590.0,0.37454256]
[1750730161331,0.05718142,105600.0,105590.0,0.37454256]
[1750730161534,0.0306385,105600.0,105590.0,0.47004442]
[1750730164661,0.0306385,105600.0,105590.0,0.82850645]
[1750730164883,0.0001385,105600.0,105590.0,0.82850645]
[1750730165114,0.0001385,105600.0,105590.0,0.84480645]
[1750730166399,0.0001385,105600.0,105590.0,0.86070645]
[1750730166599,0.0001385,105600.0,105590.0,0.86370645]
[1750730166930,0.0001385,105600.0,105590.0,0.86570645]
[1750730167335,0.0001385,105600.0,105590.0,1.20570645]
[1750730167544,0.0001385,105600.0,105590.0,1.62203848]
[1750730167932,0.0001385,105600.0,105590.0,1.63793848]
[1750730168122,0.0001385,105600.0,105590.0,1.98413848]
[1750730168354,0.0001385,105600.0,105590.0,2.37870706]
[1750730168770,0.0001385,105600.0,105590.0,2.37570706]
[1750730169182,0.0001385,105600.0,105590.0,2.38570706]
[1750730169393,0.0157991,105610.0,105600.0,0.94973513]
[1750730169621,0.0157991,105610.0,105600.0,1.04523699]
[1750730169825,0.0157991,105610.0,105600.0,1.02624699]
[1750730170042,0.0157991,105610.0,105600.0,1.22416699]
[1750730170251,0.0157991,105610.0,105600.0,1.42416699]
[1750730170466,0.0157991,105610.0,105600.0,1.42412699]
[1750730170702,0.0157991,105610.0,105600.0,1.77412699]
[1750730171651,0.00632601,105610.0,105600.0,1.72412699]
[1750730171868,0.00632601,105610.0,105600.0,2.05692817]
[1750730172072,0.00022378,105650.0,105640.0,0.21771947]
[1750730172458,0.00068536,105650.0,105640.0,0.75266251]
[1750730173211,0.31125418,105670.0,105650.0,0.19876888]
[1750730173403,0.32020326,105670.0,105660.0,0.37427826]
[1750730173804,0.37794326,105670.0,105660.0,0.37427826]
[1750730174660,0.37794326,105670.0,105660.0,0.21767826]
[1750730174991,0.37794326,105670.0,105660.0,0.37427826]
[1750730175533,0.35429518,105670.0,105660.0,0.37427826]
[1750730175746,0.05390208,105670.0,105660.0,0.46978012]
[1750730175963,0.33670326,105670.0,105660.0,0.46978012]
[1750730176367,0.015,105650.0,105640.0,0.36481309]
[1750730176569,0.31370118,105650.0,105640.0,0.37427884]
[1750730176784,0.31370118,105650.0,105640.0,0.38374486]
[1750730176947,0.31370118,105650.0,105640.0,0.22718486]
[1750730177163,0.31370118,105650.0,105640.0,0.37427947]
[1750730177979,0.0309,105650.0,105640.0,0.37427947]
[1750730178186,0.34215918,105650.0,105640.0,0.37427947]
[1750730178380,0.059358,105650.0,105640.0,0.37527947]
[1750730178781,0.50847737,105650.0,105640.0,0.19978815]
[1750730179038,0.50847737,105650.0,105640.0,0.21871956]
[1750730179223,0.4976174,105650.0,105640.0,0.22818504]
[1750730179359,0.05729645,105650.0,105640.0,0.22818504]
[1750730179582,0.08575745,105650.0,105640.0,0.22818504]
[1750730179778,0.08575745,105650.0,105640.0,0.22071956]
[1750730179979,0.08575745,105650.0,105640.0,0.21125399]
[1750730180179,0.08575745,105650.0,105640.0,0.22071974]
[1750730180380,0.08575745,105650.0,105640.0,0.23018531]
[1750730180603,0.08577283,105650.0,105640.0,0.2291854]
[1750730180829,0.08577283,105650.0,105640.0,0.2271854]
[1750730181321,0.52609378,105650.0,105640.0,0.19878815]
[1750730181525,0.52609378,105650.0,105640.0,0.20825399]
[1750730181936,0.52709378,105650.0,105640.0,0.19878815]
[1750730182095,0.52709378,105650.0,105640.0,0.20825399]
[1750730182515,0.52709378,105650.0,105640.0,0.19878815]
[1750730183312,0.0313,105640.0,105630.0,0.19880365]
[1750730183517,0.47162095,105640.0,105630.0,0.2177372]
[1750730183721,0.47162095,105640.0,105630.0,0.22720367]
[1750730184256,0.0313,105640.0,105630.0,0.22720367]
[1750730185130,0.0313,105640.0,105630.0,0.22720384]
[1750730185540,0.0313,105640.0,105630.0,0.21773729]
[1750730185839,0.0313,105640.0,105630.0,0.21773738]
[1750730186008,0.0313,105640.0,105630.0,0.22720402]
[1750730186414,0.0313,105640.0,105630.0,0.20827065]
[1750730186583,0.0312,105630.0,105620.0,0.21773086]
[1750730186789,0.0312,105630.0,105620.0,0.46975272]
[1750730187835,0.0312,105630.0,105620.0,0.4702143]
[1750730188646,0.0312,105630.0,105620.0,0.4732143]
[1750730189670,0.47152095,105630.0,105620.0,0.20228746]
[1750730189871,0.0312,105630.0,105620.0,0.22122263]
[1750730190029,0.059666,105630.0,105620.0,0.20975509]
[1750730190391,0.059666,105630.0,105620.0,0.00046158]
[1750730190645,0.49998695,105630.0,105620.0,0.00046158]
[1750730191009,0.5145278,105630.0,105620.0,0.00046158]
[1750730191460,0.86379394,105630.0,105620.0,0.00046158]
[1750730191631,1.17952127,105630.0,105620.0,0.00046158]
[1750730192676,1.18052127,105630.0,105620.0,0.00046158]
[1750730193414,1.19715614,105630.0,105620.0,0.00046158]
[1750730193627,1.19815614,105630.0,105620.0,0.00046158]
[1750730194363,1.00055614,105630.0,105620.0,0.00046158]
[1750730194513,1.19815614,105630.0,105620.0,0.00046158]
[1750730194722,0.99129,105630.0,105620.0,0.00046158]
[1750730194898,1.18889,105630.0,105620.0,0.00046158]
[1750730195104,1.09338814,105630.0,105620.0,0.19928737]